[Event "American Cup Women Elimination 2024"]
[Site "Saint Louis"]
[Date "2024.03.16"]
[Round "2.2"]
[White "Yu, Jennifer"]
[Black "Paikidze, Nazi"]
[Result "0-1"]
[ECO "D38"]
[WhiteElo "2279"]
[BlackElo "2319"]
[Annotator "TA"]
[PlyCount "98"]
[EventDate "2024.03.11"]
[EventType "k.o."]
[EventCountry "USA"]
[SourceTitle "playchess.com"]
[Source "ChessBase"]
[SourceQuality "1"]
[TimeControl "1500+10"]

{[%evp 9,98,8,22,10,58,56,54,56,56,44,33,44,68,68,48,52,76,56,67,36,79,77,82,87,83,86,93,94,123,88,100,110,95,70,78,81,83,80,80,55,75,71,71,67,79,73,91,73,66,54,138,28,90,93,84,0,0,0,0,-147,-145,-214,-197,-179,-201,-204,-197,-296,-180,-255,-254,-447,-451,-422,-352,-518,-481,-1950,-1543,-1134,-1057,-5273,-5257,-5310,-5310,-29987,-29988,-29988,-29989,-29989,-29990]} 1. d4 {[%emt 0:10:00]} Nf6 {[%emt 0:10:01]} 2. c4 {[%emt 0:00:01]} e6 {[%emt 0:00:02]} 3. Nf3 {[%emt 0:00:02]} Bb4+ {[%emt 0:00:01]} 4. Nc3 {[%emt 0:00:04]} O-O {[%emt 0:00:31]} 5. Bg5 {[%emt 0:00:32]} d5 {[%emt 0:00:24]} 6. Qb3 {[%emt 0:00:40]} Nc6 {[%emt 0:01:42]} (6... c5 $11) 7. e3 $14 {[%emt 0:00:46]} dxc4 {[%emt 0:03:01]} 8. Bxc4 {[%emt 0:01:16] White is slightly better.} Be7 {[%emt 0:00:02]} 9. Qc2 {[%emt 0:01:32]} Nb4 {[%emt 0:00:34]} 10. Qe2 {[%emt 0:00:15]} a6 {[%emt 0:01:45]} 11. O-O {[%emt 0:01:05]} h6 {[%emt 0:00:05]} 12. Bh4 {[%emt 0:00:05]} b5 {[%emt 0:00:16]} 13. Bb3 {[%emt 0:00:03]} Bb7 {[%emt 0:00:09]} 14. a4 {[%emt 0:00:24]} bxa4 {[%emt 0:00:15]} 15. Nxa4 {[%emt 0:00:14]} (15. Rxa4 $6 a5 $11) 15... Ne4 {[%emt 0:00:04]} 16. Bxe7 {[%emt 0:00:12]} Qxe7 {[%emt 0:00:01]} 17. Rfc1 {[%emt 0:00:13]} a5 {[%emt 0:00:43]} 18. Ne5 {[%emt 0:02:15]} Ba6 {[%emt 0:01:44]} 19. Bc4 {[%emt 0:00:02]} Rfb8 {[%emt 0:00:14]} 20. Bxa6 {[%emt 0:00:51]} Rxa6 {[%emt 0:00:01]} 21. f3 {[%emt 0:00:11]} (21. Qg4 {is interesting.} Nd6 22. Nc5 Ra7 23. Ra3) 21... Nf6 {[%emt 0:00:10]} 22. Nc5 {[%emt 0:00:15]} Ra7 {[%emt 0:00:29]} 23. Ra4 {[%emt 0:00:39][%cal Oa4b4] And now Rxb4! would win.} Nfd5 {[%emt 0:00:17]} 24. Rca1 {[%emt 0:01:31]} Rba8 {[%emt 0:00:01]} 25. Nb3 {[%emt 0:02:32]} f6 {[%emt 0:00:43][%cal Bf7f6,Bf6e5,Be5e4][%mdl 32]} 26. Nc4 {[%emt 0:00:25][%cal Rc4a5]} (26. Rxa5 $2 Rxa5 27. Nxa5 fxe5 $19) 26... e5 {[%emt 0:00:15]} 27. dxe5 {[%emt 0:00:32]} ({Reject} 27. Rxa5 Rxa5 28. Rxa5 Rxa5 29. Ncxa5 exd4 30. Nxd4 Qxe3+ 31. Qxe3 Nxe3 $11) 27... fxe5 {[%emt 0:00:02]} 28. Nbxa5 {[%emt 0:00:48]} e4 {[%emt 0:01:24]} 29. f4 {[%emt 0:00:55]} c5 {[%emt 0:00:18] [#]} (29... Qf8 $14) 30. Rd1 {[%emt 0:00:46]} ({White should play} 30. R4a3 $1 $16) 30... Qc7 {[%emt 0:00:27]} (30... Qe6 $11) 31. Ra3 $16 {[%emt 0:00:32]} Nd3 {[%emt 0:00:44][%cal Ra7a5]} 32. Raxd3 {[%emt 0:00:23]} (32. Rda1 $16) 32... exd3 $11 {[%emt 0:00:05]} 33. Qxd3 {[%emt 0:00:03]} Nb4 {[%emt 0:00:25]} 34. Qb3 {[%emt 0:00:24] Black continues to play with concentration.} (34. Qf5 $1 $11 {remains equal.}) 34... Kh8 $17 {[%emt 0:01:01]} 35. Qc3 {[%emt 0:00:16]} (35. h3 $17) 35... Rxa5 $19 {[%emt 0:00:12]} 36. Nxa5 {[%emt 0:00:02]} Rxa5 {[%emt 0:00:14]} 37. Qc4 {[%emt 0:00:22]} Ra8 {[%emt 0:00:16]} 38. Rc1 {[%emt 0:00:09]} (38. Qe4 {keeps fighting.} Rd8 39. Rxd8+ Qxd8 40. g3) 38... Rc8 {[%emt 0:00:01]} 39. Qe6 {[%emt 0:00:04]} (39. Rc3 $142) 39... Nd3 {[%emt 0:00:25][%csl LRb2,LRc1]} 40. Rd1 {[%emt 0:00:08]} (40. Rc2 {was worth a try.}) 40... c4 {[%emt 0:00:06]} (40... Nxb2 41. Rd7 Qb8 42. Qe7 $17) 41. Rd2 {[%emt 0:00:05]} Rb8 {[%emt 0:00:26]} 42. Rc2 {[%emt 0:00:17]} (42. h3 {was forced.}) 42... c3 {[%emt 0:00:07]} ({Less strong is} 42... Rxb2 43. Qe8+ Kh7 44. Qe4+ g6 45. Qxd3 $17) 43. b3 {[%emt 0:00:07]} (43. h3 $142 Nxb2 (43... Rxb2 44. Qe8+ Kh7 45. Qe4+ Kg8 46. Qe8+ Kh7 47. Qe4+ Kh8 48. Qe8+ Kh7 $11) 44. Qd5) 43... Nb4 {[%emt 0:00:09]} 44. Rc1 {[%emt 0:00:02]} c2 {[%emt 0:00:06]} 45. Qe4 {[%emt 0:00:02] [#] Prevents Nd3} Rd8 $1 {[%emt 0:00:26] ( -> ...Rd1+)} 46. Qxb4 {[%emt 0:00:23]} (46. Rxc2 Qxc2) 46... Rd1+ {[%emt 0:00:01]} 47. Kf2 {[%emt 0:00:13]} Rxc1 {[%emt 0:00:04] Black mates.} 48. Qf8+ {[%emt 0:00:01]} Kh7 {[%emt 0:00:01]} 49. Qf5+ {[%emt 0:00:04]} g6 {[%emt 0:00:02] Weighted Error Value: White=0.58/Black=0.16 (very precise) .  Mistake:       	White=9     	Black=3      Inaccurate:     	White=1     	Black=3      OK:         	White=14    	Black=12     Best:        	---       	Black=3} 0-1

[Event "American Cup Women Elimination 2024"]
[Site "Saint Louis"]
[Date "2024.03.16"]
[Round "2.2"]
[White "Tang, Zoey"]
[Black "Tokhirjonova, Gulrukhbegim"]
[Result "0-1"]
[ECO "D46"]
[WhiteElo "2253"]
[BlackElo "2365"]
[Annotator "TA"]
[PlyCount "70"]
[EventDate "2024.03.11"]
[EventType "k.o."]
[EventCountry "USA"]
[SourceTitle "playchess.com"]
[Source "ChessBase"]
[SourceQuality "1"]
[TimeControl "1500+10"]

{[%evp 19,69,19,33,18,21,8,8,0,0,5,46,-74,0,0,-6,-12,-16,-16,0,-43,0,-7,0,0,0,-80,-95,-105,-106,-119,-104,-72,-116,-116,-114,-113,-111,-209,-124,-200,-40,-589,-546,-874,-851,-5389,-5281,-5414,-5297,-29993,-29994,-29999]} 1. d4 {[%emt 0:10:03]} Nf6 {[%emt 0:10:03]} 2. c4 {[%emt 0:00:02]} e6 {[%emt 0:00:02]} 3. Nf3 {[%emt 0:00:01]} d5 {[%emt 0:00:02]} 4. Nc3 {[%emt 0:00:02]} c6 {[%emt 0:00:01]} 5. e3 {[%emt 0:00:07]} Nbd7 {[%emt 0:00:02]} 6. Qc2 {[%emt 0:00:08]} Bd6 {[%emt 0:00:04]} 7. Bd3 {[%emt 0:00:02]} dxc4 {[%emt 0:00:44]} 8. Bxc4 {[%emt 0:00:02]} O-O {[%emt 0:01:26]} 9. O-O {[%emt 0:03:26]} e5 {[%emt 0:00:03]} 10. h3 {[%emt 0:01:06]} Qe7 {[%emt 0:00:09]} 11. e4 {[%emt 0:02:26]} b5 {[%emt 0:03:44]} 12. Bd3 {[%emt 0:01:02]} a6 {[%emt 0:00:37]} 13. Ne2 {[%emt 0:01:09] The position is equal.} c5 {[%emt 0:01:45]} 14. Ng3 {[%emt 0:01:11]} g6 {[%emt 0:01:04] Repels Nf5} (14... cxd4 $2 15. Nf5 Qd8 (15... Qe6 $2 16. Ng5 $18) 16. Nxd6 $18) 15. Bh6 {[%emt 0:00:56]} (15. d5 $1 $14 {stays ahead.}) 15... exd4 {[%emt 0:01:43]} (15... cxd4 $1 $17 {aiming for ...Re8.} 16. a4 Rd8 17. axb5 a5) 16. Bxf8 {[%emt 0:00:19]} Qxf8 {[%emt 0:00:02]} 17. b3 {[%emt 0:00:38]} Bb7 {[%emt 0:00:06]} 18. Rae1 {[%emt 0:00:59]} Re8 {[%emt 0:01:13]} 19. Qc1 {[%emt 0:00:38]} Bb8 {[%emt 0:01:04]} 20. a4 $1 {[%emt 0:01:38]} Bxg3 {[%emt 0:01:09]} 21. fxg3 {[%emt 0:00:02]} Bxe4 {[%emt 0:00:04]} 22. Qb1 {[%emt 0:01:07] [#]} (22. Bxe4 $11 {keeps the balance.} Nxe4 23. Qf4) 22... Bxf3 $1 $17 {[%emt 0:00:37]} 23. Rxf3 {[%emt 0:00:11]} Rxe1+ {[%emt 0:00:35]} 24. Qxe1 {[%emt 0:00:01]} bxa4 {[%emt 0:00:03]} 25. bxa4 {[%emt 0:00:48][%cal Og3g4]} Qd6 {[%emt 0:00:01]} 26. Qf1 {[%emt 0:00:16] [#]} Kg7 $1 {[%emt 0:00:45] Threatens to win with ...Ne5.} (26... a5 $6 27. Bb5 $11) 27. Bxa6 {[%emt 0:00:50] a5 would now be deadly.} Ne5 {[%emt 0:00:02]} 28. Rf4 {[%emt 0:00:10]} (28. Bc4 $17 Nxf3+ 29. Qxf3) 28... d3 {[%emt 0:00:15]} (28... Nh5 $19 29. Bb5 d3 (29... Nxg3 30. Qf2 $17) (29... Nxf4 30. gxf4 Nc6 31. Qe1 $17) 30. Bxd3 Nxf4 31. Qxf4 c4) 29. Bb5 {[%emt 0:00:08]} (29. Rxf6 $17 {was called for.} Qxf6 30. Bxd3) 29... Nh5 $2 {[%emt 0:00:34]} (29... d2 $19 30. Be2 g5 (30... c4 31. Qa1 $17) 31. Rxf6 Qxf6) 30. Qa1 {[%emt 0:00:22][%mdl 8192] Loses the game.} f6 $19 {[%emt 0:00:37][%cal Oh5g3]} ({Stronger than} 30... Nxg3 31. Bxd3 f6 32. Bf1 $15) 31. Rf1 {[%emt 0:00:02]} Nxg3 {[%emt 0:00:07]} 32. Rd1 {[%emt 0:00:02] White is weak on the dark squares} c4 {[%emt 0:00:11] ( -> ...Ne2+)} 33. Qb2 {[%emt 0:00:31]} Ne2+ {[%emt 0:00:27] A dynamic duo of knights.} 34. Kf2 {[%emt 0:00:13]} Qc5+ {[%emt 0:00:13]} 35. Kf1 {[%emt 0:00:07]} Qg1# {[%emt 0:00:02] Weighted Error Value: White=1.10/Black=0.24 (precise) .  Loses game:     	White=1     	---        Mistake:       	White=4     	Black=3      Inaccurate:     	White=3     	Black=2      OK:         	White=5     	Black=6      Best:        	---       	Black=4      Strong:       	White=1     	Black=2} 0-1

[Event "American Cup Women Elimination 2024"]
[Site "Saint Louis"]
[Date "2024.03.16"]
[Round "2.3"]
[White "Yu, Jennifer"]
[Black "Paikidze, Nazi"]
[Result "1-0"]
[ECO "D38"]
[WhiteElo "2279"]
[BlackElo "2319"]
[Annotator "TA"]
[PlyCount "65"]
[EventDate "2024.03.11"]
[EventType "k.o."]
[EventCountry "USA"]
[SourceTitle "playchess.com"]
[Source "ChessBase"]
[SourceQuality "1"]
[TimeControl "1500+10"]

{[%evp 16,65,49,33,86,12,31,0,0,0,0,0,0,0,25,12,29,25,63,62,118,118,114,116,114,125,120,117,115,120,265,259,280,279,259,256,324,316,367,375,432,395,414,406,570,570,570,566,1087,1087,1070,1034]} 1. d4 {[%emt 0:10:01]} Nf6 {[%emt 0:10:02]} 2. c4 {[%emt 0:00:01]} e6 {[%emt 0:00:01]} 3. Nf3 {[%emt 0:00:03]} Bb4+ {[%emt 0:00:02]} 4. Nc3 {[%emt 0:00:01]} d5 {[%emt 0:00:01]} 5. Bg5 {[%emt 0:00:05]} h6 {[%emt 0:00:04]} 6. Bxf6 {[%emt 0:00:05]} Qxf6 {[%emt 0:00:02]} 7. Qb3 {[%emt 0:00:01]} Nc6 {[%emt 0:02:28]} 8. cxd5 {[%emt 0:01:13]} exd5 {[%emt 0:00:01]} 9. e3 {[%emt 0:00:01]} O-O {[%emt 0:02:17]} (9... Bxc3+ $14 10. bxc3 Qf5) 10. Bb5 {[%emt 0:00:54]} ({Better is} 10. Qxd5 $16 Qg6 11. Qc4) 10... Bg4 $11 {[%emt 0:01:43]} 11. Bxc6 {[%emt 0:02:37]} Bxc3+ {[%emt 0:00:06] The position is equal.} 12. bxc3 {[%emt 0:00:50]} bxc6 {[%emt 0:00:14]} 13. Ne5 {[%emt 0:00:01]} Bf5 {[%emt 0:00:21]} 14. Qb7 {[%emt 0:00:24]} Rab8 {[%emt 0:01:07]} 15. Qxc6 {[%emt 0:00:22]} Rb2 {[%emt 0:00:48]} 16. O-O {[%emt 0:01:42][%cal Bh1f1,Bf1f2,Bf2d2][%mdl 32]} (16. Qxd5 $2 Be4 17. Ng4 Qa6 (17... Bxd5 $2 18. Nxf6+ gxf6 19. O-O $19) 18. Nxh6+ gxh6 $19) 16... Qxc6 {[%emt 0:03:00]} 17. Nxc6 {[%emt 0:00:02] [#] Strongly threatening Ne7+.} Be4 {[%emt 0:00:33]} (17... Re8 $14) 18. f3 $16 {[%emt 0:00:57]} (18. Nxa7 Rb6 19. f3 Bg6 $17) 18... Bd3 {[%emt 0:00:01]} 19. Rf2 {[%emt 0:00:01]} Rb5 {[%emt 0:01:10]} 20. a4 $36 {[%emt 0:00:52][%mdl 2048] White is on the roll.} (20. Nxa7 $2 Rb6 21. a4 c6 $19) 20... Rb3 {[%emt 0:00:01]} 21. Ne7+ {[%emt 0:00:11]} (21. Nxa7 Rfb8 22. Nb5 c6 $17) 21... Kh7 {[%emt 0:00:01]} 22. Nxd5 {[%emt 0:00:04][%cal Of2d2] Rd2! would now be deadly.} Rfb8 {[%emt 0:00:20] Loses the game.} (22... c6 $16 23. Nb4 Rxc3) 23. Rd2 $1 $18 {[%emt 0:01:09]} (23. Nxc7 $2 {loses.} Rb1+ $19 (23... Rxc3 24. Rd2 $16) (23... Rxc3 $2 24. Rd2 $16)) 23... Bc4 {[%emt 0:00:02]} 24. Nxc7 {[%emt 0:00:38]} Rxc3 {[%emt 0:00:19]} 25. e4 {[%emt 0:00:25]} Rd8 {[%emt 0:00:52]} 26. d5 {[%emt 0:02:03][%cal Bd4d5,Bd5d6][%mdl 32]} a6 {[%emt 0:00:01]} 27. d6 {[%emt 0:01:13]} f6 {[%emt 0:00:17]} 28. Rb1 {[%emt 0:00:53]} Rd7 {[%emt 0:00:40]} 29. Rb6 {[%emt 0:00:31]} Bb3 {[%emt 0:00:19]} (29... Ra3 {is a better defense.} 30. Nxa6 Bxa6 31. Rxa6 Kg8) 30. Nxa6 {[%emt 0:00:37] White is clearly winning.} ({Weaker is} 30. Rxa6 Rc1+ 31. Kf2 Rcxc7 $11) 30... Bxa4 {[%emt 0:00:03]} 31. Rd4 {[%emt 0:00:24]} Rc6 {[%emt 0:00:35]} 32. Rxc6 {[%emt 0:00:04]} Bxc6 {[%emt 0:00:02]} 33. Nb8 {[%emt 0:00:01][%csl LRc6,LRd7] Weighted Error Value: White=0.10 (very precise) /Black=0.34.  Mistake:       	White=1     	Black=3      Inaccurate:     	White=1     	Black=2      OK:         	White=14    	Black=12     Best:        	White=2     	---        Strong:       	White=1     	---} 1-0

[Event "American Cup Women Elimination 2024"]
[Site "Saint Louis"]
[Date "2024.03.16"]
[Round "2.3"]
[White "Tang, Zoey"]
[Black "Tokhirjonova, Gulrukhbegim"]
[Result "0-1"]
[ECO "D45"]
[WhiteElo "2253"]
[BlackElo "2365"]
[Annotator "TA"]
[PlyCount "120"]
[EventDate "2024.03.11"]
[EventType "k.o."]
[EventCountry "USA"]
[SourceTitle "playchess.com"]
[Source "ChessBase"]
[SourceQuality "1"]
[TimeControl "1500+10"]

{[%evp 26,120,44,55,20,29,45,44,38,0,50,36,68,28,27,5,15,13,91,87,89,89,101,91,203,201,208,200,282,164,171,106,122,115,175,106,279,254,235,0,242,138,139,135,631,125,125,125,126,76,114,114,168,173,177,173,149,56,27,38,58,-6,0,-104,-8,-95,-62,-153,-168,-185,-179,-361,-361,-361,-361,-474,-368,-458,-456,-6362,-5654,-6083,-4145,-6540,-5842,-29979,-29980,-29980,-29981,-29982,-29980,-29989,-29989,-29989,-29990,-29990,-29991]} 1. d4 {[%emt 0:10:03]} Nf6 {[%emt 0:10:02]} 2. c4 {[%emt 0:00:01]} e6 {[%emt 0:00:02]} 3. Nf3 {[%emt 0:00:01]} d5 {[%emt 0:00:01]} 4. Nc3 {[%emt 0:00:02]} c6 {[%emt 0:00:01]} 5. e3 {[%emt 0:00:06]} Nbd7 {[%emt 0:00:02]} 6. Qc2 {[%emt 0:00:02]} Bd6 {[%emt 0:00:02]} 7. b3 {[%emt 0:00:02]} O-O {[%emt 0:00:05]} 8. Bb2 {[%emt 0:00:21]} b6 {[%emt 0:00:02]} 9. Bd3 {[%emt 0:00:22]} Bb7 {[%emt 0:00:02]} 10. O-O {[%emt 0:00:18]} Qe7 {[%emt 0:00:06]} 11. Rad1 {[%emt 0:00:11]} Rac8 {[%emt 0:00:22]} 12. Rfe1 {[%emt 0:00:21]} Rfd8 {[%emt 0:01:25]} 13. e4 {[%emt 0:00:12]} dxe4 {[%emt 0:00:04]} 14. Nxe4 {[%emt 0:00:02]} Nxe4 {[%emt 0:00:02]} 15. Bxe4 {[%emt 0:00:12]} Nf8 {[%emt 0:00:27]} 16. h4 {[%emt 0:01:35]} h6 {[%emt 0:00:26]} 17. h5 {[%emt 0:01:08]} a5 {[%emt 0:00:29]} (17... Nd7 $11) 18. Qc1 {[%emt 0:01:41]} a4 {[%emt 0:02:32]} 19. Bb1 {[%emt 0:00:43]} axb3 {[%emt 0:00:27]} 20. axb3 {[%emt 0:00:02]} Ra8 {[%emt 0:00:01]} 21. Qe3 {[%emt 0:01:55]} Ra5 {[%emt 0:00:17]} (21... Bb4 $11 {keeps the balance.}) 22. c5 $1 $16 {[%emt 0:02:18]} Bc7 {[%emt 0:01:51]} 23. b4 {[%emt 0:01:06]} Ra4 {[%emt 0:00:35]} 24. Qc3 {[%emt 0:02:09]} Rd5 {[%emt 0:00:24]} (24... f6 $16) 25. Be4 $1 $18 {[%emt 0:00:55]} Qd8 {[%emt 0:05:12]} 26. Bxd5 {[%emt 0:00:07]} Qxd5 {[%emt 0:00:02]} (26... exd5 $142 27. Ra1 Rxa1 28. Rxa1 Bb8) 27. Ne5 {[%emt 0:01:10]} (27. Ra1 $142 b5 28. Rxa4 bxa4 29. Ra1) 27... f6 $18 {[%emt 0:00:16]} 28. Nf3 {[%emt 0:01:05]} (28. cxb6 $18 Bd6 29. Qc2) 28... Qxh5 {[%emt 0:00:07]} 29. Ra1 {[%emt 0:01:07]} b5 {[%emt 0:00:17]} (29... Rxa1 $16 {is a better defense.} 30. Rxa1 (30. Bxa1 Qg4 $16) 30... Qe8) 30. Qb3 {[%emt 0:00:24]} (30. Rxa4 $18 {Ra7 is the strong threat.} bxa4 31. Qd3) 30... Qg4 $2 {[%emt 0:00:38]} (30... Rxa1 $16 {was called for.} 31. Rxa1 (31. Bxa1 Qg4 $16) 31... Bb8) 31. Rxa4 $18 {[%emt 0:00:16]} bxa4 {[%emt 0:00:02]} 32. Qa2 $2 {[%emt 0:00:14]} (32. Qxa4 $18 Ng6 33. Bc1) 32... Kh8 $2 {[%emt 0:00:30]} (32... Ba6 $1 $11) 33. Bc1 {[%emt 0:00:07]} (33. Qxa4 $18 {Qa7 would now be deadly.} Ng6 34. Bc1) 33... h5 $16 {[%emt 0:00:24]} 34. Qe2 {[%emt 0:00:18]} f5 $2 {[%emt 0:00:38][%mdl 8192]} (34... Kg8 $16 35. Qd3 Ng6) 35. Ne5 $2 {[%emt 0:00:05]} (35. d5 $18 {and the rest is easy.} Bc8 36. d6 (36. dxc6 Qxb4 37. Bb2 Ng6 $18)) 35... Qxe2 $16 {[%emt 0:01:10]} 36. Rxe2 {[%emt 0:00:02]} Ba6 {[%emt 0:00:02]} 37. Re3 {[%emt 0:00:19]} ({White should play} 37. Ra2 Bb5 38. Bf4) 37... Bb5 {[%emt 0:00:13]} 38. Rh3 {[%emt 0:00:07]} g6 {[%emt 0:00:07]} (38... Kg8 $16 {keeps fighting.}) 39. Nd3 $1 $18 {[%emt 0:00:17]} Kg7 {[%emt 0:00:11]} 40. Nb2 $1 {[%emt 0:00:07]} e5 {[%emt 0:00:07]} 41. Ra3 {[%emt 0:00:12]} (41. d5 $1 $16 {[%cal Rd5d6] Black must now prevent d6.} cxd5 42. Ra3) 41... exd4 $14 {[%emt 0:00:08]} 42. Nxa4 {[%emt 0:00:02]} Ne6 {[%emt 0:00:09]} 43. Nb2 {[%emt 0:00:11]} ({White should try} 43. Nb6 $1 $14) 43... Kf6 {[%emt 0:00:15]} 44. g3 {[%emt 0:00:14] [#]} (44. Nd3 $11) 44... g5 {[%emt 0:00:06]} (44... f4 $1 $17 45. Kg2 g5) 45. Kg2 {[%emt 0:00:06] [#]} (45. Nd3 $11) 45... f4 $1 $17 {[%emt 0:00:24]} 46. Nd3 {[%emt 0:00:13]} (46. Ra8 $15) 46... Kf5 $17 {[%emt 0:00:40]} 47. Ne1 {[%emt 0:00:14]} g4 {[%emt 0:00:11]} 48. gxf4 $2 {[%emt 0:00:05]} (48. Kg1) 48... Bxf4 $19 {[%emt 0:00:13]} 49. Bxf4 {[%emt 0:00:09]} Nxf4+ {[%emt 0:00:02]} (49... Kxf4 50. Kh2 $17) 50. Kh2 {[%emt 0:00:05]} h4 {[%emt 0:00:19]} 51. Ra8 {[%emt 0:00:06]} d3 {[%emt 0:00:13]} 52. Ng2 {[%emt 0:00:27]} (52. Rf8+ $142 Ke5 53. Re8+ Kd4 54. Nxd3 Nxd3 (54... Kxd3 $2 55. Rg8 $19) 55. Rh8) 52... Nxg2 $19 {[%emt 0:01:03]} 53. Kxg2 {[%emt 0:00:01]} Ke4 {[%emt 0:00:02]} 54. Rd8 {[%emt 0:00:13]} Bc4 {[%emt 0:00:07]} 55. f3+ {[%emt 0:00:16]} gxf3+ {[%emt 0:00:02]} 56. Kf2 {[%emt 0:00:01]} h3 {[%emt 0:00:13]} 57. Re8+ {[%emt 0:00:12]} Kd4 {[%emt 0:00:03]} 58. Ke1 {[%emt 0:00:13]} Kc3 {[%emt 0:00:04]} 59. Rd8 {[%emt 0:00:06]} h2 {[%emt 0:00:03]} 60. Rh8 {[%emt 0:00:04]} d2+ {[%emt 0:00:02]} (60... Kxb4 61. Rxh2 Kc3 (61... Kxc5 62. Kd2 $11) 62. Rf2 $11) 0-1

[Event "American Cup Women Elimination 2024"]
[Site "Saint Louis"]
[Date "2024.03.16"]
[Round "2.4"]
[White "Paikidze, Nazi"]
[Black "Yu, Jennifer"]
[Result "0-1"]
[ECO "E16"]
[WhiteElo "2319"]
[BlackElo "2279"]
[Annotator "RC"]
[PlyCount "158"]
[EventDate "2024.03.11"]
[EventType "k.o."]
[EventCountry "USA"]
[SourceTitle "playchess.com"]
[Source "ChessBase"]
[SourceQuality "1"]
[TimeControl "1500+10"]

1. d4 {[%emt 0:10:02]} d5 {[%emt 0:10:02]} 2. c4 {[%emt 0:00:01]} e6 {[%emt 0:00:03]} 3. Nf3 {[%emt 0:00:02]} Nf6 {[%emt 0:00:01]} 4. g3 {[%emt 0:00:01]} Bb4+ {[%emt 0:00:17]} 5. Nbd2 {[%emt 0:00:05]} O-O {[%emt 0:00:14]} 6. Bg2 {[%emt 0:00:02]} b6 {[%emt 0:00:12]} 7. Ne5 {[%emt 0:00:40]} Bb7 {[%emt 0:00:05]} 8. O-O {[%emt 0:00:32]} Nbd7 {[%emt 0:01:08]} 9. Nxd7 {[%emt 0:00:45]} Qxd7 {[%emt 0:00:14]} 10. Nf3 {[%emt 0:00:10]} Bd6 {[%emt 0:01:07]} 11. Ne5 {[%emt 0:00:34]} Qc8 {[%emt 0:00:27]} 12. Qc2 {[%emt 0:01:51]} c5 {[%emt 0:00:47]} 13. e3 {[%emt 0:02:17]} cxd4 {[%emt 0:00:25]} 14. exd4 {[%emt 0:00:01]} dxc4 {[%emt 0:00:10]} 15. Bxb7 {[%emt 0:00:45]} Qxb7 {[%emt 0:00:04]} 16. Nxc4 {[%emt 0:00:04]} Be7 {[%emt 0:00:37]} 17. Qe2 {[%emt 0:01:26]} Rfd8 {[%emt 0:00:43]} 18. Be3 {[%emt 0:00:43]} Rac8 {[%emt 0:04:49]} 19. Ne5 {[%emt 0:00:17]} Qe4 {[%emt 0:00:39]} 20. Rac1 {[%emt 0:01:25]} Nd5 {[%emt 0:01:39]} 21. Qf3 {[%emt 0:01:00]} Qxf3 {[%emt 0:00:02]} 22. Nxf3 {[%emt 0:00:01]} Nb4 {[%emt 0:00:20]} 23. Bd2 {[%emt 0:00:25]} Nc6 {[%emt 0:02:25]} 24. Be3 {[%emt 0:00:39]} Bf6 {[%emt 0:00:26]} 25. Rfd1 {[%emt 0:01:31]} h6 {[%emt 0:00:29]} 26. Kg2 {[%emt 0:00:07]} Ne7 {[%emt 0:00:32]} 27. Bf4 {[%emt 0:00:36]} Rxc1 {[%emt 0:01:01]} 28. Rxc1 {[%emt 0:01:31]} Bxd4 {[%emt 0:00:05]} 29. Rd1 {[%emt 0:00:51]} Nc6 {[%emt 0:00:05]} 30. Rc1 {[%emt 0:00:06]} Bc5 {[%emt 0:00:14]} 31. a3 {[%emt 0:00:06]} a5 {[%emt 0:00:09]} 32. Bc7 {[%emt 0:00:18]} Rc8 {[%emt 0:00:09]} 33. Bf4 {[%emt 0:00:09]} f6 {[%emt 0:00:14]} 34. Bd2 {[%emt 0:00:15]} Rd8 {[%emt 0:00:19]} 35. Be3 {[%emt 0:00:33]} Rd5 {[%emt 0:00:18]} 36. Kf1 {[%emt 0:00:11]} e5 {[%emt 0:00:04]} 37. Ke2 {[%emt 0:00:09]} e4 {[%emt 0:00:14]} 38. Nd2 {[%emt 0:00:01]} f5 {[%emt 0:00:11]} 39. Nb3 {[%emt 0:00:25]} Bxe3 {[%emt 0:00:09]} 40. Rxc6 {[%emt 0:00:11]} Bc5 {[%emt 0:00:06]} 41. Nxc5 {[%emt 0:00:05]} bxc5 {[%emt 0:00:05]} 42. Rb6 {[%emt 0:00:27]} c4 {[%emt 0:00:11]} 43. a4 {[%emt 0:00:10]} Rd3 {[%emt 0:00:12]} 44. Rb5 {[%emt 0:00:18]} Rb3 {[%emt 0:00:23]} 45. Rxa5 {[%emt 0:00:11]} Rxb2+ {[%emt 0:00:01]} 46. Ke3 {[%emt 0:00:04]} Rb3+ {[%emt 0:00:07]} 47. Ke2 {[%emt 0:00:23]} g6 {[%emt 0:00:02]} 48. Rc5 {[%emt 0:00:06]} c3 {[%emt 0:00:15]} 49. a5 {[%emt 0:00:12]} Ra3 {[%emt 0:00:01]} 50. a6 {[%emt 0:00:14]} Rxa6 {[%emt 0:00:06]} 51. Rxc3 {[%emt 0:00:02]} Kf7 {[%emt 0:00:02]} 52. h4 {[%emt 0:00:09]} Ke6 {[%emt 0:00:09]} 53. Rc8 {[%emt 0:00:08]} Ke5 {[%emt 0:00:38]} 54. Rh8 {[%emt 0:00:07]} g5 {[%emt 0:00:02]} 55. hxg5 {[%emt 0:00:03]} hxg5 {[%emt 0:00:02]} 56. Rg8 {[%emt 0:00:11]} Ra2+ {[%emt 0:00:16]} 57. Kf1 {[%emt 0:00:01]} Kf6 {[%emt 0:00:06]} 58. Rf8+ {[%emt 0:00:08]} Kg6 {[%emt 0:00:01]} 59. Rh8 {[%emt 0:00:27]} f4 {[%emt 0:00:18]} 60. gxf4 {[%emt 0:00:01]} gxf4 {[%emt 0:00:01]} 61. Re8 {[%emt 0:00:12]} Kf5 {[%emt 0:00:09]} 62. Ke1 {[%emt 0:00:10]} Rb2 {[%emt 0:00:45]} 63. Re7 {[%emt 0:00:06]} Rb4 {[%emt 0:00:06]} 64. Ke2 {[%emt 0:00:23]} f3+ {[%emt 0:00:13]} 65. Ke1 {[%emt 0:00:19]} Rb1+ {[%emt 0:00:02]} 66. Kd2 {[%emt 0:00:01]} Rb2+ {[%emt 0:00:01]} 67. Ke1 {[%emt 0:00:03]} Re2+ {[%emt 0:00:16]} 68. Kf1 {[%emt 0:00:01]} Ra2 {[%emt 0:00:14]} 69. Ke1 {[%emt 0:00:15]} Ra1+ {[%emt 0:00:08]} 70. Kd2 {[%emt 0:00:02]} Rf1 {[%emt 0:00:01]} 71. Ke3 {[%emt 0:00:20]} Re1+ {[%emt 0:00:02]} 72. Kd4 {[%emt 0:00:05]} Rd1+ {[%emt 0:00:08]} 73. Kc3 {[%emt 0:00:07]} Rf1 {[%emt 0:00:07]} 74. Kd4 {[%emt 0:00:05]} Rd1+ {[%emt 0:00:23]} 75. Kc3 {[%emt 0:00:01]} Kf4 {[%emt 0:00:12]} 76. Rf7+ {[%emt 0:00:06]} Kg4 {[%emt 0:00:00]} 77. Re7 {[%emt 0:00:06]} Kh3 {[%emt 0:00:15]} 78. Rg7 {[%emt 0:00:15]} e3 {[%emt 0:00:18]} 79. fxe3 {[%emt 0:00:32]} f2 {[%emt 0:00:01]} 0-1